bitfinex/quotes_BTCUSD_20220111
["timestamp","ask_amount","ask_price","bid_price","bid_amount"]
[1641887886739,0.06051,42247.0,42246.0,0.0008497]
[1641887886939,0.80955859,42247.0,42246.0,0.0008497]
[1641887887540,0.80955859,42247.0,42245.0,0.00079589]
[1641887887740,0.42491973,42246.0,42245.0,0.00079589]
[1641887888141,0.06051,42246.0,42245.0,0.00079589]
[1641887888545,0.06051,42244.0,42239.0,0.68626673]
[1641887888747,0.07393,42239.0,42235.0,0.78430483]
[1641887889044,0.23154276,42245.0,42235.0,0.68440483]
[1641887889045,0.0618079,42237.0,42235.0,0.68440483]
[1641887889242,0.10781,42236.0,42235.0,0.68440483]
[1641887889443,0.36813537,42236.0,42228.0,0.89811436]
[1641887889645,0.06051,42234.0,42227.0,0.41496232]
[1641887889904,0.06051,42232.0,42227.0,0.41496232]
[1641887890093,0.06051,42232.0,42225.0,0.599]
[1641887890695,0.06051,42226.0,42225.0,0.599]
[1641887890895,0.06171211,42226.0,42225.0,0.599]
[1641887891099,0.06171211,42226.0,42225.0,1.32273953]
[1641887891297,0.06051,42226.0,42225.0,1.32273953]
[1641887891896,0.06051,42226.0,42225.0,0.970351]
[1641887892097,0.06551,42226.0,42225.0,0.970351]
[1641887893502,0.06051,42226.0,42225.0,1.43930511]
[1641887893765,0.06051,42226.0,42225.0,1.59058233]
[1641887893962,0.06051,42226.0,42225.0,1.43992479]
[1641887894162,0.42,42232.0,42225.0,0.98397068]
[1641887894163,0.36545922,42231.0,42225.0,0.98397068]
[1641887894362,0.25154257,42227.0,42225.0,0.61261968]
[1641887894564,0.25154257,42227.0,42226.0,0.371351]
[1641887894759,0.42,42232.0,42225.0,0.61261968]
[1641887895159,0.25472395,42227.0,42225.0,0.61261968]
[1641887895361,0.25472395,42227.0,42225.0,0.59953522]
[1641887896160,0.25972395,42227.0,42225.0,0.61253522]
[1641887897061,0.36545922,42226.0,42225.0,0.61253522]
[1641887897262,0.36667113,42226.0,42225.0,0.61253522]
[1641887897513,0.00121191,42226.0,42225.0,0.59953522]
[1641887897705,0.00121191,42226.0,42225.0,0.83953522]
[1641887898107,0.36767113,42226.0,42225.0,0.83953522]
[1641887899510,0.36667113,42226.0,42225.0,0.83953522]
[1641887900205,0.38167113,42226.0,42225.0,0.83953522]
[1641887900806,0.01621191,42226.0,42225.0,0.83953522]
[1641887901444,0.00121191,42226.0,42225.0,0.83953522]
[1641887902043,0.059207,42227.0,42225.0,0.83953522]
[1641887902242,0.006,42226.0,42225.0,0.83953522]
[1641887902646,0.006,42226.0,42225.0,1.21088622]
[1641887903443,0.059207,42227.0,42225.0,1.21088622]
[1641887903643,0.059207,42227.0,42225.0,0.83953522]
[1641887904243,0.067207,42227.0,42225.0,0.83953522]
[1641887905494,0.059207,42227.0,42225.0,0.83953522]
[1641887906095,0.067207,42227.0,42225.0,0.83953522]
[1641887906495,0.008,42227.0,42225.0,0.83953522]
[1641887906696,0.008,42227.0,42226.0,0.371351]
[1641887906895,0.008,42227.0,42225.0,0.83953522]
[1641887907595,0.27300772,42229.0,42225.0,0.83953522]
[1641887907995,0.27272275,42229.0,42225.0,0.83953522]
[1641887908195,0.27872275,42229.0,42225.0,0.84037711]
[1641887909250,0.27872275,42229.0,42225.0,0.83953522]
[1641887909551,0.27272275,42229.0,42225.0,0.84037711]
[1641887910150,0.27872275,42229.0,42225.0,0.84037711]
[1641887910353,0.006,42229.0,42225.0,0.83953522]
[1641887910554,0.006,42229.0,42225.0,0.84037711]
[1641887911353,0.30818186,42230.0,42225.0,0.84037711]
[1641887911553,0.30818186,42230.0,42225.0,0.83953522]
[1641887911755,0.30818186,42230.0,42225.0,0.84037709]
[1641887912155,0.32118186,42230.0,42225.0,0.84037709]
[1641887912592,0.059201,42229.0,42225.0,0.84037709]
[1641887912793,0.059201,42229.0,42225.0,0.83953522]
[1641887912996,0.059201,42229.0,42225.0,0.84037709]
[1641887913395,0.09283656,42229.0,42225.0,0.84037709]
[1641887913592,0.059201,42229.0,42225.0,0.84037709]
[1641887913993,0.059201,42229.0,42227.0,0.0006174]
[1641887914194,0.071201,42229.0,42227.0,0.0006174]
[1641887914393,0.1171542,42229.0,42227.0,0.0006174]
[1641887914693,0.071201,42229.0,42227.0,0.0006174]
[1641887915499,0.059201,42229.0,42227.0,0.0006174]
[1641887916143,0.081201,42229.0,42227.0,0.0086174]
[1641887917843,0.109201,42229.0,42227.0,0.0006174]
[1641887918046,0.059201,42229.0,42227.0,0.0006174]
[1641887918244,0.059201,42229.0,42227.0,0.0086174]
[1641887918245,0.076201,42229.0,42227.0,0.0086174]
[1641887918544,0.066201,42229.0,42227.0,0.0086174]
[1641887919345,0.066201,42229.0,42226.0,0.00084186]
[1641887919546,0.04832474,42227.0,42226.0,0.00084186]
[1641887919993,0.04832474,42227.0,42225.0,0.83891554]
[1641887920192,0.04832474,42227.0,42226.0,0.009]
[1641887920193,0.05732474,42227.0,42226.0,0.009]
[1641887920396,0.009,42227.0,42226.0,0.009]
[1641887920597,0.009,42227.0,42225.0,0.83891554]
[1641887921292,0.11740926,42228.0,42225.0,0.83891554]
[1641887922097,0.05820426,42228.0,42225.0,0.83891554]
[1641887922298,0.01,42228.0,42225.0,0.84791554]
[1641887923744,0.06920188,42228.0,42225.0,0.84791554]
[1641887924244,0.06820188,42228.0,42225.0,0.37626854]
[1641887924443,0.35800778,42227.0,42225.0,0.37626854]
[1641887925444,0.099201,42229.0,42225.0,0.36526854]
[1641887926247,0.099201,42229.0,42225.0,0.37526854]
[1641887926248,0.104201,42229.0,42225.0,0.37526854]
[1641887926449,0.16340514,42229.0,42225.0,0.37526854]
[1641887926648,0.104201,42229.0,42225.0,0.37526854]
[1641887927498,0.099201,42229.0,42225.0,0.36526854]
[1641887928199,0.099201,42229.0,42225.0,0.37526854]
[1641887928395,0.103201,42229.0,42225.0,0.37526854]
[1641887929599,0.099201,42229.0,42225.0,0.36526854]
[1641887930297,0.107201,42229.0,42225.0,0.37526854]
[1641887930597,0.03862473,42227.0,42225.0,0.37526854]
[1641887931444,0.03862473,42227.0,42225.0,0.36526854]
[1641887931644,0.099201,42229.0,42225.0,0.36526854]
[1641887931843,0.04182403,42227.0,42225.0,0.36526854]
[1641887932244,0.04182403,42227.0,42225.0,0.37626854]
[1641887933450,0.04182403,42227.0,42225.0,0.36526854]
[1641887934347,0.04182403,42227.0,42225.0,0.37826854]
[1641887935400,0.099201,42229.0,42225.0,0.37826854]
[1641887935601,0.099201,42229.0,42225.0,0.36526854]
[1641887935805,0.04408684,42227.0,42225.0,0.36526854]
[1641887936006,0.19454551,42229.0,42225.0,0.36526854]
[1641887936402,0.19454551,42229.0,42225.0,0.37626854]
[1641887936403,0.04750711,42227.0,42225.0,0.37626854]
[1641887936800,0.14750711,42227.0,42225.0,0.37626854]
[1641887937002,0.03411574,42226.0,42225.0,0.37626854]
[1641887937201,0.1,42227.0,42225.0,0.37626854]
[1641887937603,0.1,42227.0,42225.0,0.36526854]
[1641887938404,0.105,42227.0,42225.0,0.37726854]
[1641887939645,0.1,42227.0,42225.0,0.36526854]
[1641887940245,0.104,42227.0,42225.0,0.38526854]
[1641887941450,0.104,42227.0,42223.0,0.59061644]
[1641887941451,0.00124561,42222.0,42219.0,0.78877813]
[1641887941650,0.00124561,42222.0,42212.0,0.89811436]
[1641887941651,0.6512633,42220.0,42212.0,0.89811436]
[1641887941853,0.73802456,42219.0,42212.0,0.89811436]
[1641887942049,0.035,42218.0,42215.0,0.78687572]
[1641887942251,0.050596,42217.0,42215.0,0.78687572]
[1641887942498,0.00122956,42216.0,42215.0,0.31303672]
[1641887942698,0.69680073,42216.0,42204.0,0.27462547]
[1641887942899,0.32413954,42207.0,42204.0,0.27462547]
[1641887943097,0.43336854,42207.0,42205.0,0.371351]
[1641887943295,0.43336854,42207.0,42201.0,0.004]
[1641887944097,0.05713626,42207.0,42201.0,0.004]
[1641887944497,0.00713626,42207.0,42201.0,0.004]
[1641887945497,0.00713626,42207.0,42202.0,0.00082601]
[1641887946352,0.00713626,42207.0,42203.0,0.30649372]
[1641887946558,0.00713626,42207.0,42203.0,0.40649372]
[1641887947353,0.00713626,42207.0,42203.0,0.1]
[1641887947760,0.00713626,42207.0,42203.0,0.00082598]
[1641887947955,0.05,42210.0,42203.0,0.00082598]
[1641887948155,0.05,42210.0,42204.0,0.430567]
[1641887948355,0.00122956,42216.0,42205.0,0.28574072]
[1641887948553,0.00122956,42216.0,42205.0,0.33574072]
[1641887948955,0.27325761,42215.0,42208.0,0.00082582]
[1641887949157,0.32325761,42215.0,42209.0,0.05921]
[1641887949354,0.6151231,42215.0,42208.0,0.00082582]
[1641887949998,0.6151231,42215.0,42205.0,0.43574072]
[1641887950201,0.6151231,42215.0,42209.0,0.00082579]
[1641887950399,0.6501231,42215.0,42209.0,0.00082579]
[1641887950797,0.6499231,42215.0,42209.0,0.00082579]
[1641887951198,0.6499231,42215.0,42205.0,1.27217923]
[1641887951498,0.6149231,42215.0,42210.0,0.00082577]
[1641887952399,0.6149231,42215.0,42205.0,0.44495572]
[1641887952699,0.6149231,42215.0,42210.0,0.00082576]
[1641887953501,0.92939891,42215.0,42212.0,0.34404459]
[1641887953750,0.32305761,42215.0,42212.0,0.34404459]
[1641887954953,0.31554013,42214.0,42212.0,0.34404459]
[1641887955352,0.31554013,42214.0,42211.0,0.00082573]
[1641887955954,0.31554013,42214.0,42205.0,1.38139323]
[1641887956155,0.63466387,42214.0,42210.0,0.00082576]
[1641887956963,0.31554013,42214.0,42210.0,0.00035188]
[1641887957161,0.31554013,42214.0,42205.0,0.88643851]
[1641887957402,0.31554013,42214.0,42204.0,0.93373851]
[1641887957797,0.31554013,42214.0,42204.0,0.0473]
[1641887958196,0.31554013,42214.0,42206.0,0.35228538]
[1641887958397,0.059222,42213.0,42206.0,0.35228538]
[1641887958998,0.059222,42213.0,42204.0,0.2873]
[1641887959206,0.00120236,42205.0,42204.0,0.24]
[1641887959399,0.37091107,42205.0,42204.0,0.24]
[1641887959606,0.7504671,42205.0,42204.0,0.24]
[1641887960100,1.86082008,42205.0,42204.0,0.24]
[1641887960299,1.88182008,42205.0,42204.0,0.24]
[1641887960500,1.62483232,42205.0,42204.0,0.24]
[1641887960704,1.21316443,42205.0,42204.0,0.24]
[1641887960902,1.47015219,42205.0,42204.0,0.24]
[1641887961548,1.44915219,42205.0,42204.0,0.24]
[1641887962446,1.46915219,42205.0,42204.0,0.24]
[1641887963648,1.44915219,42205.0,42204.0,0.24]
[1641887964450,1.48415219,42205.0,42204.0,0.24]
[1641887965801,0.78488745,42205.0,42204.0,0.24]
[1641887966106,0.035,42205.0,42204.0,0.30642]
[1641887966402,0.022,42205.0,42204.0,0.677771]
[1641887966604,0.022,42205.0,42204.0,0.777771]
[1641887967002,0.022,42205.0,42204.0,1.06700394]
[1641887967600,0.30780079,42211.0,42204.0,1.06700394]
[1641887967801,0.30780079,42211.0,42204.0,0.59565294]
[1641887968002,0.30780079,42211.0,42204.0,0.69565294]
[1641887968202,0.30780079,42211.0,42205.0,0.00082125]
[1641887968855,0.32388445,42213.0,42206.0,0.3594737]
[1641887969053,0.00122841,42214.0,42207.0,0.41103566]
[1641887969253,0.00122841,42214.0,42207.0,0.47024766]
[1641887969452,0.00122841,42214.0,42207.0,0.57106885]
[1641887969855,0.00122841,42214.0,42213.0,0.34405412]
[1641887970155,0.00122841,42214.0,42207.0,0.51185685]
[1641887970156,0.9257,42217.0,42207.0,0.51185685]
[1641887970453,0.9257,42217.0,42213.0,0.011]
[1641887971352,0.05,42217.0,42213.0,0.011]
[1641887971654,0.34107472,42218.0,42213.0,0.011]
[1641887971854,0.34107472,42218.0,42208.0,0.38361044]
[1641887972054,0.34107472,42218.0,42208.0,0.48361044]
[1641887972254,0.40028872,42218.0,42209.0,0.28360981]
[1641887972516,0.43628872,42218.0,42209.0,0.28360981]
[1641887972709,0.37707472,42218.0,42210.0,0.059208]
[1641887972906,0.37707472,42218.0,42209.0,0.28360981]
[1641887973706,0.34107472,42218.0,42210.0,0.059208]
[1641887973906,0.0012329,42221.0,42211.0,0.37547764]
[1641887974109,1.61609426,42227.0,42214.0,0.1]
[1641887974110,1.5747,42227.0,42214.0,0.1]
[1641887974307,0.00085374,42223.0,42216.0,0.118386]
[1641887974509,0.033,42221.0,42216.0,0.168386]
[1641887974708,0.033,42221.0,42220.0,1.13164129]
[1641887974907,0.033,42221.0,42220.0,0.51723129]
[1641887975110,0.033,42221.0,42220.0,0.61723129]
[1641887975707,0.0008538,42223.0,42220.0,0.61723129]
[1641887976148,0.0008538,42223.0,42221.0,0.118371]
[1641887976350,0.6,42227.0,42221.0,0.118371]
[1641887976550,0.00085379,42224.0,42221.0,0.118371]
[1641887977653,0.6,42227.0,42221.0,0.118371]
[1641887977850,0.00085378,42225.0,42223.0,0.33124193]
[1641887978051,0.00085378,42225.0,42223.0,0.1]
[1641887978853,0.6,42227.0,42223.0,0.1]
[1641887979054,0.00085377,42226.0,42223.0,0.1]
[1641887979255,0.00085377,42226.0,42220.0,0.65001529]
[1641887979453,0.59685377,42227.0,42220.0,0.53164129]
[1641887979655,0.59685377,42227.0,42220.0,0.77164129]
[1641887980703,0.028,42223.0,42220.0,0.84083529]
[1641887980907,0.028,42223.0,42221.0,0.371351]
[1641887981108,0.028,42223.0,42221.0,0.471351]
[1641887981706,0.64685377,42227.0,42221.0,0.471351]
[1641887981904,0.64685377,42227.0,42221.0,0.1]
[1641887982307,0.64685377,42227.0,42220.0,0.77164129]
[1641887982706,0.64685377,42227.0,42220.0,0.24]
[1641887982910,0.059201,42225.0,42220.0,0.24]
[1641887983106,0.30139216,42222.0,42220.0,0.24]
[1641887983750,0.26720667,42221.0,42220.0,0.24]
[1641887984352,0.26720667,42221.0,42220.0,0.282]
[1641887985755,0.26720667,42221.0,42220.0,0.24]
[1641887986355,0.26720667,42221.0,42220.0,0.061]
[1641887986356,0.60316969,42221.0,42220.0,0.061]
[1641887986556,0.99259,42221.0,42220.0,0.061]
[1641887986755,0.8,42220.0,42218.0,0.00082926]
[1641887986954,0.42607364,42219.0,42218.0,0.00082926]
[1641887987154,0.42607364,42219.0,42204.0,0.1186]
[1641887987405,0.29097534,42207.0,42204.0,0.1186]
[1641887987798,0.34097534,42207.0,42202.0,0.07440379]
[1641887987999,0.34097534,42207.0,42202.0,0.00331841]
[1641887988699,0.34097534,42207.0,42202.0,0.00082974]
[1641887988901,0.34097534,42207.0,42203.0,0.2491327]
[1641887989102,0.34097534,42207.0,42202.0,0.24082974]
[1641887989402,0.34097534,42207.0,42203.0,0.371351]
[1641887989600,0.34097534,42207.0,42203.0,0.471351]
[1641887990000,0.31552909,42206.0,42203.0,0.471351]
[1641887990305,0.34097534,42207.0,42203.0,0.471351]
[1641887990306,0.24156267,42205.0,42203.0,0.471351]
[1641887990501,0.29156267,42205.0,42203.0,0.471351]
[1641887990705,0.32313701,42204.0,42203.0,0.471351]
[1641887990901,0.24156267,42205.0,42203.0,0.471351]
[1641887991348,0.31413524,42204.0,42203.0,0.371351]
[1641887991549,0.29156267,42205.0,42202.0,0.00075858]
[1641887991748,0.371351,42204.0,42202.0,0.00075858]
[1641887991949,0.89090223,42203.0,42202.0,0.00075858]
[1641887992148,0.89090223,42203.0,42201.0,0.00475669]
[1641887992348,0.62047301,42202.0,42201.0,0.00475669]
[1641887992548,0.99182401,42202.0,42201.0,0.00475669]
[1641887993354,0.99182401,42202.0,42201.0,0.004]
[1641887994350,0.99482401,42202.0,42201.0,0.004]
[1641887994998,0.07347301,42202.0,42201.0,0.004]
[1641887995200,0.003,42202.0,42201.0,0.004]
[1641887995799,0.38241868,42203.0,42201.0,0.004]
[1641887996002,0.371351,42202.0,42201.0,0.004]
[1641887998499,0.72046357,42202.0,42201.0,0.004]
[1641887998764,0.025,42202.0,42201.0,0.004]
[1641887999557,0.025,42202.0,42201.0,0.164]
[1641887999757,0.36675226,42210.0,42201.0,0.164]
[1641887999957,0.36675226,42210.0,42201.0,0.22322]
[1641888000157,0.9908,42211.0,42201.0,0.22322]
[1641888000356,0.99017128,42211.0,42201.0,0.27322]
[1641888000557,0.031,42210.0,42201.0,0.219]
[1641888000762,0.32532859,42210.0,42204.0,0.30384286]
[1641888000956,0.29041992,42209.0,42204.0,0.30384286]
[1641888001157,0.29041992,42209.0,42204.0,0.40384286]
[1641888001560,0.29041992,42209.0,42204.0,0.40306203]
[1641888001757,0.29041992,42209.0,42204.0,0.45384286]
[1641888002703,0.29341992,42209.0,42204.0,0.46784286]
[1641888002902,0.34341992,42209.0,42204.0,0.41706203]
[1641888003104,0.34341992,42209.0,42204.0,0.41784286]
[1641888003905,0.29041992,42209.0,42204.0,0.45384286]
[1641888004102,0.29041992,42209.0,42204.0,0.45306203]
[1641888004302,0.29041992,42209.0,42204.0,0.45384187]
[1641888004505,0.005,42209.0,42204.0,0.47284187]
[1641888005207,0.005,42209.0,42204.0,0.47206203]
[1641888005407,0.005,42209.0,42204.0,0.47284187]
[1641888005808,0.99017128,42211.0,42204.0,0.45384187]
[1641888006011,0.00127422,42212.0,42204.0,0.45384187]
[1641888006459,0.001,42211.0,42204.0,0.46306203]
[1641888006659,0.001,42211.0,42206.0,0.00077983]
[1641888007257,0.001,42211.0,42207.0,0.38687444]
[1641888007658,0.001,42211.0,42207.0,0.48687444]
[1641888007861,0.28096884,42212.0,42207.0,0.48765457]
[1641888008457,0.28096884,42212.0,42207.0,0.12278013]
[1641888008655,0.28096884,42212.0,42207.0,0.02278013]
[1641888008857,0.28096884,42212.0,42207.0,0.022]
[1641888009058,0.28096884,42212.0,42207.0,0.02278013]
[1641888009256,0.00127422,42212.0,42207.0,0.02278013]
[1641888009456,0.04592918,42215.0,42207.0,0.02278013]
[1641888009659,0.02814595,42210.0,42207.0,0.00078013]
[1641888010099,0.02814595,42210.0,42205.0,0.59792057]
[1641888010300,0.02814595,42210.0,42207.0,0.4420395]
[1641888010500,0.02814595,42210.0,42207.0,0.4600395]
[1641888010699,0.02814595,42210.0,42207.0,0.5600395]
[1641888011500,0.02814595,42210.0,42207.0,0.118]
[1641888011702,0.02814595,42210.0,42207.0,0.1]
[1641888012001,0.02814595,42210.0,42206.0,0.00078003]
[1641888012399,0.02814595,42210.0,42199.0,0.31274612]
[1641888012601,0.03714595,42210.0,42206.0,0.01178003]
[1641888013400,0.03714595,42210.0,42207.0,0.371351]
[1641888013651,0.03714595,42210.0,42209.0,0.371351]
[1641888013848,0.02814595,42210.0,42209.0,0.371351]
[1641888014049,0.34915892,42210.0,42209.0,0.371351]
[1641888014352,0.02814595,42210.0,42209.0,0.371351]
[1641888014554,0.02814595,42210.0,42209.0,0.018]
[1641888015149,0.0562919,42210.0,42209.0,0.018]
[1641888015548,0.0562919,42210.0,42209.0,0.389351]
[1641888015848,0.0562919,42210.0,42209.0,0.371351]
[1641888016048,0.0562919,42210.0,42209.0,0.471351]
[1641888016449,0.0562919,42210.0,42209.0,0.482351]
[1641888017250,0.0562919,42210.0,42209.0,0.591561]
[1641888017807,0.0562919,42210.0,42209.0,0.87556661]
[1641888018606,0.0562919,42210.0,42209.0,0.90656661]
[1641888018807,0.0562919,42210.0,42209.0,0.97798661]
[1641888019008,0.0562919,42210.0,42209.0,1.03719361]
[1641888019411,0.0562919,42210.0,42209.0,0.552351]
[1641888019812,0.0562919,42210.0,42209.0,0.521351]
[1641888020010,0.0562919,42210.0,42209.0,0.371351]
[1641888020212,0.35129047,42210.0,42207.0,0.00078004]
[1641888020412,1.29314235,42208.0,42207.0,0.00078004]
[1641888020612,2.20678186,42208.0,42207.0,0.00078004]
[1641888020813,0.0368156,42207.0,42201.0,0.164]
[1641888021014,0.00126839,42203.0,42201.0,0.164]
[1641888021252,0.99295928,42202.0,42201.0,0.164]
[1641888021555,1.38215787,42202.0,42201.0,0.164]
[1641888021750,0.45,42201.0,42192.0,0.0473]
[1641888021954,0.0012184,42193.0,42192.0,0.0473]
[1641888022150,0.41395273,42193.0,42192.0,0.0473]
[1641888022550,0.66537337,42193.0,42192.0,0.0923]
[1641888022749,1.00955586,42193.0,42192.0,0.0923]
[1641888022950,1.00955586,42193.0,42192.0,0.05]
[1641888023152,0.25263904,42193.0,42192.0,0.05]
[1641888023452,0.00713805,42195.0,42192.0,0.05]
[1641888023952,0.00713805,42195.0,42185.0,0.29664208]
[1641888024152,0.26263181,42194.0,42186.0,0.371351]
[1641888024351,0.00713805,42195.0,42186.0,0.421351]
[1641888024557,0.00713805,42195.0,42188.0,0.10042104]
[1641888024558,0.018,42195.0,42188.0,0.10042104]
[1641888024752,0.018,42195.0,42192.0,0.371351]
[1641888025005,0.018,42195.0,42193.0,0.43140258]
[1641888025202,0.018,42195.0,42194.0,0.921351]
[1641888025406,0.018,42195.0,42194.0,0.371351]
[1641888025604,0.018,42195.0,42185.0,0.07642]
[1641888025805,0.00120159,42197.0,42192.0,0.00080028]
[1641888026005,0.28525141,42200.0,42192.0,0.00080028]
[1641888026405,0.28525141,42200.0,42193.0,0.28499823]
[1641888026604,0.28525141,42200.0,42192.0,0.00780028]
[1641888026605,0.39448941,42200.0,42192.0,0.00780028]
[1641888026804,0.39448941,42200.0,42192.0,0.007]
[1641888027111,0.39448941,42200.0,42194.0,0.00080022]
[1641888027112,0.05,42200.0,42194.0,0.00080022]
[1641888027304,0.05,42200.0,42194.0,0.4115531]
[1641888027504,0.05924,42198.0,42194.0,0.00080022]
[1641888027704,0.05924,42198.0,42194.0,0.10080022]
[1641888027904,0.00085322,42201.0,42195.0,0.371351]
[1641888028108,0.24295254,42203.0,42195.0,0.43173932]
[1641888028305,0.00085321,42201.0,42195.0,0.43173932]
[1641888028512,0.00085321,42201.0,42195.0,0.43973932]
[1641888028754,0.00085321,42201.0,42196.0,0.07142]
[1641888028954,0.00085321,42201.0,42197.0,0.371351]
[1641888029151,0.34096231,42206.0,42197.0,0.1]
[1641888029351,0.24541133,42199.0,42197.0,0.15075874]
[1641888029756,0.566027,42199.0,42197.0,0.15075874]
[1641888029951,0.00062956,42201.0,42197.0,0.05075874]
[1641888030353,0.059234,42202.0,42193.0,0.53696434]
[1641888030554,0.059234,42202.0,42197.0,0.00875874]
[1641888030555,0.00062956,42201.0,42197.0,0.00875874]
[1641888030955,0.00062956,42201.0,42198.0,0.33760492]
[1641888031155,0.0562919,42200.0,42198.0,0.43760492]
[1641888031356,0.0562919,42200.0,42198.0,0.15]
[1641888032417,0.0562919,42200.0,42198.0,0.059226]
[1641888032608,0.0562919,42200.0,42198.0,0.069226]
[1641888033006,0.0562919,42200.0,42198.0,0.31244786]
[1641888033406,0.0562919,42200.0,42198.0,0.41244786]
[1641888034007,0.0562919,42200.0,42198.0,0.1]
[1641888034211,0.0562919,42200.0,42197.0,0.00078374]
[1641888034407,0.32383799,42199.0,42197.0,0.05078374]
[1641888034608,0.0562919,42200.0,42198.0,0.009]
[1641888035808,0.0562919,42200.0,42197.0,0.00078374]
[1641888036251,0.00070084,42201.0,42197.0,0.00078374]
[1641888036453,0.34423352,42211.0,42197.0,0.41030825]
[1641888036454,0.02814595,42198.0,42197.0,0.41030825]
[1641888036655,0.02814595,42198.0,42197.0,1.06927073]
[1641888036853,0.02814595,42198.0,42197.0,1.11927073]
[1641888037250,0.02814595,42198.0,42197.0,1.08743102]
[1641888037451,0.02814595,42198.0,42197.0,1.3910923]
[1641888037857,0.02814595,42199.0,42198.0,1.25]
[1641888038054,0.02814595,42199.0,42198.0,2.1797892]
[1641888038352,0.00067788,42201.0,42199.0,0.7]
[1641888038553,0.00067788,42201.0,42200.0,0.87071177]
[1641888038752,0.5,42205.0,42200.0,0.87071177]
[1641888038951,0.5,42205.0,42204.0,0.63548043]
[1641888039152,0.5,42205.0,42204.0,0.84468943]
[1641888039751,0.5,42205.0,42204.0,1.21583943]
[1641888040006,0.5,42205.0,42204.0,1.29794799]
[1641888040213,0.02638,42205.0,42204.0,2.14794799]
[1641888040409,0.00068533,42207.0,42205.0,1.25]
[1641888040605,0.00068533,42207.0,42206.0,0.371351]
[1641888041006,0.00068533,42207.0,42206.0,0.84718066]
[1641888041206,0.33420576,42219.0,42206.0,0.84718066]
[1641888041406,0.00068534,42209.0,42207.0,0.07115]
[1641888041605,0.00068534,42209.0,42208.0,0.430553]
[1641888041805,0.00068534,42209.0,42208.0,0.371351]
[1641888042007,0.00068534,42209.0,42208.0,0.471351]
[1641888042407,0.59975146,42219.0,42208.0,0.371351]
[1641888042605,0.00068536,42211.0,42208.0,0.08715]
[1641888043005,0.00068536,42211.0,42210.0,0.371351]
[1641888043658,0.9198,42220.0,42210.0,0.75676722]
[1641888043856,1.23915847,42220.0,42215.0,0.059201]
[1641888044056,0.29547527,42221.0,42215.0,0.059201]
[1641888044657,0.29547527,42221.0,42215.0,0.069201]
[1641888044855,0.29547527,42221.0,42215.0,0.01]
[1641888045056,0.00068301,42220.0,42215.0,0.01]
[1641888045856,0.00068301,42220.0,42213.0,0.5518047]
[1641888046057,0.29547527,42221.0,42213.0,0.5518047]
[1641888046256,0.00068301,42220.0,42213.0,0.5518047]
[1641888046455,0.00068301,42220.0,42213.0,0.22115]
[1641888046657,0.33153327,42220.0,42213.0,0.12915]
[1641888046856,0.00068301,42220.0,42213.0,0.12915]
[1641888047417,0.00068369,42219.0,42214.0,0.26143028]
[1641888048017,0.00068369,42219.0,42216.0,0.059198]
[1641888048213,0.00068369,42219.0,42218.0,0.07115]
[1641888048415,0.0434069,42226.0,42218.0,1.692501]
[1641888048614,0.0006837,42220.0,42218.0,1.842501]
[1641888048815,0.0006837,42220.0,42219.0,1.18244019]
[1641888049215,0.0006837,42220.0,42219.0,0.471351]
[1641888049414,0.0006837,42220.0,42219.0,0.542501]
[1641888049614,0.09685377,42227.0,42219.0,0.542501]
[1641888049814,0.00068371,42222.0,42219.0,0.17115]
[1641888050217,0.32016537,42220.0,42219.0,0.13034]
[1641888050415,0.00068371,42222.0,42219.0,0.13034]
[1641888050617,0.00068371,42222.0,42219.0,0.14234]
[1641888050817,0.25734343,42226.0,42219.0,0.14234]
[1641888051015,0.0006835,42223.0,42219.0,0.14234]
[1641888051654,0.32431883,42223.0,42219.0,0.44910442]
[1641888051854,0.32431883,42223.0,42219.0,0.43710442]
[1641888052056,0.14685377,42227.0,42219.0,0.23034]
[1641888052255,0.00068351,42223.0,42219.0,0.23034]
[1641888052655,0.00068351,42223.0,42219.0,0.23734]
[1641888053055,0.34261979,42222.0,42219.0,0.13734]
[1641888053959,0.34261979,42222.0,42221.0,0.00060943]
[1641888054356,0.34219069,42222.0,42221.0,0.00060943]
[1641888054757,0.34219069,42222.0,42221.0,0.08375943]
[1641888055006,0.34219069,42222.0,42221.0,0.13375943]
[1641888055206,0.00068356,42224.0,42221.0,0.13375943]
[1641888055605,0.09685377,42227.0,42221.0,0.13375943]
[1641888055809,0.00068356,42225.0,42221.0,0.12175943]
[1641888056605,0.00068356,42225.0,42221.0,0.12975943]
[1641888056606,0.25060605,42225.0,42221.0,0.12975943]
[1641888056805,0.24992249,42225.0,42221.0,0.12975943]
[1641888057007,0.00068357,42225.0,42221.0,0.12975943]
[1641888058008,0.09809214,42227.0,42221.0,0.12175943]
[1641888058209,0.00068354,42225.0,42222.0,0.29886207]
[1641888058654,0.00068354,42225.0,42223.0,0.059191]
[1641888058852,0.00068354,42225.0,42223.0,0.05979816]
[1641888059255,0.09685377,42227.0,42223.0,0.05979816]
[1641888059454,0.00068355,42226.0,42223.0,0.05979816]
[1641888059857,0.00068355,42226.0,42225.0,0.37115]
[1641888060155,0.00068355,42226.0,42225.0,0.17115]
[1641888060357,0.09685377,42227.0,42225.0,0.22115]
[1641888060754,0.09685377,42227.0,42225.0,0.23115]
[1641888061153,0.09685377,42227.0,42225.0,0.13115]
[1641888061353,0.09685377,42227.0,42226.0,0.442501]
[1641888061557,0.09685377,42227.0,42226.0,0.542501]
[1641888062805,0.09685377,42227.0,42226.0,0.553501]
[1641888064008,0.09685377,42227.0,42226.0,0.54310473]
[1641888064811,0.09685377,42227.0,42226.0,0.55710473]
[1641888066012,0.09685377,42227.0,42226.0,0.54310473]
[1641888066655,0.09685377,42227.0,42226.0,0.55510473]
[1641888066857,0.35516467,42227.0,42226.0,0.55510473]
[1641888067058,0.35516467,42227.0,42226.0,0.38395473]
[1641888067059,0.09685377,42227.0,42226.0,0.38395473]
[1641888068057,0.09685377,42227.0,42226.0,0.37195473]
[1641888068261,0.09685377,42227.0,42226.0,0.44310473]
[1641888068458,0.09685377,42227.0,42226.0,0.82800488]
[1641888068658,0.09685377,42227.0,42226.0,0.84100488]
[1641888068863,0.06925507,42227.0,42226.0,3.31802028]
[1641888069060,0.00068356,42229.0,42227.0,1.2]
[1641888069261,0.00068356,42229.0,42228.0,0.82316046]
[1641888069460,0.00068356,42229.0,42228.0,1.00988331]
[1641888069666,0.00068356,42229.0,42228.0,1.19564086]
[1641888069933,0.00068356,42229.0,42228.0,1.20862711]